Cogmind - Beta 17 @@@ ROGUE MODE // 2026.07.03 @ 00:26:09 Player: DZKane Result: Destroyed by as-63197 with Assembled F-torch Performance ------------- Evolutions (5) 2500 Regions Visited (14) 2800 Robots Destroyed (94) 470 Value Destroyed (3765) 3765 Prototype IDs (17) 340 Alien Tech Used (0) 0 Bonus (4529) 4529 TOTAL SCORE: 14404 Bonus ------- High Alert Combat Kills 237 Follower Combat Kills 2314 Entered DSFs 1000 Network Hubs Disabled 200 Built Enhanced Grunts 300 A7 Reached Mainframe 300 Met R17 at Cetus 500 Friendly Fire -322 Cogmind --------- Core Integrity 0/1000 Matter 300/300 Energy 98/100 System Corruption 16% Temperature Cool (20) Movement Core (50) Location -5/DSF Parts ------- > --- POWER (2) -------- (None) > --- PROPULSION (4) --- (None) > --- UTILITY (8) ------ (None) > --- WEAPON (3) ------- (None) > --- INVENTORY (5) ---- Neutrino Core Seismic Detector Transmission Jammer Improved Remote Force Field Plasma Cutter Peak State ------------ > --- POWER ------------ Quantum Reactor Quantum Reactor > --- PROPULSION ------- Centrium Heavy Treads Flexi-carbon Leg Combat Airjet > --- UTILITY ---------- High-capacity Storage Unit Advanced Visual Processing Unit Advanced Targeting Computer Advanced Targeting Computer Advanced Targeting Computer Advanced Targeting Computer Experimental Targeting Computer Centrium Medium Armor Plating > --- WEAPON ----------- Advanced Plasma Cannon Advanced Plasma Cannon Advanced Plasma Cannon > --- INVENTORY -------- Angular Momentum Engine Advanced Heat Sink High-capacity Matter Pod Advanced Terrain Scan Processor Seismic Detector Advanced Targeting Computer Transmission Jammer Transmission Jammer Improved Remote Force Field Advanced Plasma Cannon Advanced Plasma Cannon Advanced Plasma Cannon Plasma Cutter [Rating: 100] Favorites ----------- Power Reinforced Deuterium Engine Engine Reinforced Deuterium Engine Power Core Light Nuclear Core Reactor Antimatter Reactor Propulsion Improved Gravmag System Treads Light Treads Leg Advanced VSS Leg Wheel Armored Huge Wheel Hover Unit Improved Gravmag System Utility Advanced Targeting Computer Device Cooling System Storage Large Storage Unit Processor Advanced Targeting Computer Protection Hardened Light Armor Plating Weapon Bore Cannon Energy Gun Cooled Pulse Rifle Energy Cannon Advanced Plasma Cannon Ballistic Gun Light Assault Rifle Ballistic Cannon Bore Cannon Special Weapon Plasma Cutter Slashing Weapon Scythe Special Melee Weapon Improved Datajack Build | -11 -10 -9 -8 -7 -7 -7 -7 -6 -6 -6 -6 -6 -5 -5 ------- Run | Yrd Mat Mat Mat Fac Was Fac DSF Fac Ext Cet Arc Hub Fac DSF Slots Evolved 10 | . . 2 2 2 . . . 2 . . . . 2 . Power 1 | . . . . . . . . 1 . . . . . . Propulsion 2 | . . 1 1 . . . . . . . . . . . Utility 6 | . . 1 1 1 . . . 1 . . . . 2 . Weapon 1 | . . . . 1 . . . . . . . . . . Parts Attached 116 | 3 3 20 22 6 6 . 6 2 5 2 1 10 4 26 Power 18 | . 1 4 3 . 1 . . 1 1 . . . 2 5 Engine 7 | . 1 3 . . . . . 1 1 . . . . 1 Core 8 | . . 1 3 . . . . . . . . . . 4 Reactor 3 | . . . . . 1 . . . . . . . 2 . Propulsion 30 | 2 . 5 5 . 1 . 6 . 1 . . 5 . 5 Treads 17 | 2 . 5 3 . 1 . 2 . . . . 2 . 2 Leg 3 | . . . . . . . . . . . . . . 3 Wheel 2 | . . . 2 . . . . . . . . . . . Hover 8 | . . . . . . . 4 . 1 . . 3 . . Flight . | . . . . . . . . . . . . . . . Utility 34 | . 2 5 8 3 1 . . 1 2 1 1 4 2 4 Device 13 | . 1 1 3 1 . . . . 1 . 1 2 . 3 Storage 3 | . 1 . . 1 . . . . 1 . . . . . Processor 10 | . . 1 3 1 . . . . . . . 2 2 1 Hackware . | . . . . . . . . . . . . . . . Protection 8 | . . 3 2 . 1 . . 1 . 1 . . . . Artifact . | . . . . . . . . . . . . . . . Weapon 34 | 1 . 6 6 3 3 . . . 1 1 . 1 . 12 Energy Gun 9 | . . . 2 1 . . . . . . . . . 6 Energy Cannon 8 | . . . 2 . . . . . . . . . . 6 Ballistic Gun 9 | 1 . 3 2 1 . . . . . 1 . 1 . . Ballistic Cannon 4 | . . 1 . . 3 . . . . . . . . . Launcher . | . . . . . . . . . . . . . . . Special Weapon 2 | . . 1 . 1 . . . . . . . . . . Impact Weapon . | . . . . . . . . . . . . . . . Slashing Weapon 1 | . . 1 . . . . . . . . . . . . Piercing Weapon . | . . . . . . . . . . . . . . . Special Melee Weapon 1 | . . . . . . . . . 1 . . . . . Unidentified Prototypes 8 | . . . 2 1 . . . . . 2 . 3 . . Parts Lost 66 | . . 4 9 . 2 . . . . . . 16 . 35 Power 10 | . . 1 1 . . . . . . . . 3 . 5 Propulsion 19 | . . 1 3 . 1 . . . . . . 8 . 6 Utility 19 | . . 2 3 . 1 . . . . . . 1 . 12 Weapon 18 | . . . 2 . . . . . . . . 4 . 12 Highest Loss Streak 16 | . . 3 7 . 2 . . . . . . 15 . 16 To Critical Strikes . | . . . . . . . . . . . . . . . Average Backups 14 | 6 8 14 11 12 12 13 13 13 16 19 19 18 9 11 Power . | 1 1 . . 1 1 1 1 . 1 1 1 1 . . Propulsion 4 | 4 4 7 4 6 5 5 4 3 3 4 4 3 . . Utility 6 | . 1 3 3 2 3 3 5 8 10 11 11 11 8 7 Weapon 1 | 1 1 3 1 1 2 3 1 . 1 1 1 . . 1 Tool/Special . | . . . . . . . . . . . . . . . Unused Backups 40 | . . 4 13 2 1 . 5 . 5 4 . 1 . 5 Power 6 | . . . . . 1 . . . 3 2 . . . . Propulsion 14 | . . 1 7 1 . . 4 . . 1 . . . . Utility 9 | . . . . 1 . . . . 2 . . 1 . 5 Weapon 9 | . . 3 4 . . . 1 . . 1 . . . . Tool/Special 2 | . . . 2 . . . . . . . . . . . Average Slot Usage (%) 93 | . 96 99 85 91 84 92 96 99 99 100 100 94 66 78 Engine 6 | . 14 8 . . . . . 5 9 13 13 11 . 1 Core 2 | . . 2 8 7 6 . . . . . . . . 1 Reactor 1 | . . . . . . 7 7 6 2 . . . 9 5 Treads 9 | . 28 33 15 15 13 15 5 . . . . . 5 6 Wheel 1 | . . . 8 7 7 7 2 . . . . . . . Hover 13 | . . . . . . . 17 26 25 26 26 24 5 2 Device 4 | . 10 3 6 3 3 . . . 3 6 6 5 . 2 Storage 7 | . 14 11 9 7 7 7 7 6 6 6 6 6 5 4 Processor 18 | . . 10 14 26 23 23 23 20 20 20 20 23 34 29 Protection 5 | . . 7 5 . 1 7 7 13 9 6 6 2 4 3 Energy Cannon 1 | . . . 5 . . . . . . . . . . 8 Ballistic Gun 5 | . 28 15 2 17 7 . . . . . . . . . Ballistic Cannon 10 | . . 3 . . 4 23 23 20 19 18 20 16 . . Slashing Weapon 1 | . . 3 7 . . . . . . . . . . . Peak Build Rating 100 | 6 8 17 39 47 52 52 59 65 68 74 75 78 69 100 Average Rating 50 | 6 7 12 30 46 43 52 55 64 64 66 72 69 68 77 On Entrance 44 | 6 6 8 17 39 47 52 52 58 65 64 72 72 45 69 Avg Prop Armor Cover (%) 13 | . . . 15 15 14 11 11 . . . . 22 3 5 Naked Turns 10 | . . . . . . . . . . . . . . 10 Heaviest Build 112 | 10 30 37 41 36 68 68 68 85 105 106 106 112 82 109 Greatest Support 134 | 40 40 60 60 28 28 28 40 40 40 40 40 100 80 134 Greatest Overweight (x) 3 | . . . 1 1 2 2 3 2 2 2 2 3 1 3 Average Overweight (x) 1 | . . . . 1 1 2 1 2 1 2 2 1 1 . Largest Inventory Capacity 20 | 8 15 15 15 15 15 15 15 15 20 20 20 20 20 20 Average Capacity 16 | 8 13 15 15 15 15 15 15 15 18 20 20 20 20 19 Most Carried 20 | 6 15 15 15 15 15 15 15 15 20 20 20 20 13 16 Average Carried 15 | 6 8 14 13 14 14 15 14 14 17 19 20 19 9 11 Final Capacity 20 | 8 15 15 15 15 15 15 15 15 20 20 20 20 20 5 Final Carried 20 | 6 15 15 15 15 15 15 15 15 20 20 20 14 9 5 Class Distribution -------------------- 27% | Commander-Gunner 19% | Mutant 16% | Tank 14% | Scavenger-Mutant 10% | Gunner 6% | Skirmisher 5% | Scavenger-Gunner Dominant Class ---------------- Mutant | -10/Materials Scavenger-Mutant | -9/Materials Mutant | -8/Materials Skirmisher | -7/Factory Skirmisher | -7/Waste Gunner | -7/Factory Gunner | -7/DSF Tank | -6/Factory Tank | -6/Extension Commander-Gunner | -6/Cetus Commander-Gunner | -6/Archives Commander-Gunner | -6/Hub_04(d) Scavenger-Mutant | -5/Factory Scavenger-Gunner | -5/DSF Resources | -11 -10 -9 -8 -7 -7 -7 -7 -6 -6 -6 -6 -6 -5 -5 ----------- Run | Yrd Mat Mat Mat Fac Was Fac DSF Fac Ext Cet Arc Hub Fac DSF Matter Collected 3402 | 230 284 353 321 92 284 . 91 20 665 281 71 444 . 266 Remotely . | . . . . . . . . . . . . . . . Salvage Created 4865 | . 317 692 1017 92 331 . 31 . 859 356 62 482 . 626 Parts 216 | . 12 58 52 2 6 . 4 . 19 16 5 28 . 14 Haulers Intercepted 7 | . 1 1 2 . . . . . 2 . . 1 . . Recyclers Shooed 2 | . 2 . . . . . . . . . . . . . Parts Field Recycled . | . . . . . . . . . . . . . . . Retrieved Matter . | . . . . . . . . . . . . . . . Parts Self-Destructed . | . . . . . . . . . . . . . . . Prevented . | . . . . . . . . . . . . . . . Parts Restored . | . . . . . . . . . . . . . . . Kills | -11 -10 -9 -8 -7 -7 -7 -7 -6 -6 -6 -6 -6 -5 -5 ------- Run | Yrd Mat Mat Mat Fac Was Fac DSF Fac Ext Cet Arc Hub Fac DSF Combat Hostiles Destroyed 98 | . 3 18 20 . 1 . 1 . 8 6 . 4 . 37 Melee 12 | . . . 12 . . . . . . . . . . . Guns 46 | . 3 18 2 . 1 . . . . . . . . 22 Cannons 35 | . . . 1 . . . 1 . 8 6 . 4 . 15 AOE 5 | . . . 5 . . . . . . . . . . . Classes Destroyed 20 | . 3 5 4 . 1 . 1 . 1 . 1 1 . 3 Worker 5 | . . . 1 . . . . . . . . 4 . . Builder 2 | . . . 1 . . . . . . . . 1 . . Tunneler 1 | . . 1 . . . . . . . . . . . . Hauler 7 | . 1 1 2 . . . . . 2 . . 1 . . Recycler 6 | . 2 . 1 1 . . . . 1 . . 1 . . Mechanic 1 | . . 1 . . . . . . . . . . . . Operator 2 | . . . . . . . . . . . 2 . . . Watcher 4 | . . . 2 1 . . . . 1 . . . . . Swarmer 12 | . . 8 3 . . . . . . . . . . 1 Grunt 24 | . 3 5 12 . . . . . 3 . . 1 . . Duelist 1 | . . 1 . . . . . . . . . . . . Protector 1 | . . . . . . . . . . . . 1 . . Sentry 12 | . . 4 4 . . . . . 3 . . 1 . . Demolisher 1 | . . . . . . . . . . . . . . 1 Specialist 1 | . . . . . . . . . . . . . . 1 Hunter 1 | . . . 1 . . . . . . . . . . . Heavy 2 | . . . . . . . 1 . . . . . . 1 Behemoth 1 | . . . . . . . . . 1 . . . . . Compactor 1 | . . . . . 1 . . . . . . . . . Cetus Guard 6 | . . . . . . . . . . 6 . . . . Lightning 1 | . . . . . . . . . . . . 1 . . Assembled 33 | . . . . . . . . . . . . . . 33 Thug 1 | . . . . . . . . . 1 . . . . . Butcher 1 | . . . . . . . . . 1 . . . . . Best Kill Streak 13 | . 2 7 9 2 1 . 1 . 5 3 1 4 . 13 Combat Bots Only 13 | . 2 6 7 . 1 . 1 . 5 3 . 2 . 13 Max Kills in Single Turn 9 | . 1 1 9 1 1 . 1 . 2 2 1 2 . 3 Gunslinging 2 | . . . . . . . . . . . . . . 2 Exploded 5 | . . . 5 . . . . . . . . . . . Melee 1 | . . . 1 . . . . . . . . . . . Uniques/NPCs Destroyed . | . . . . . . . . . . . . . . . Combat | -11 -10 -9 -8 -7 -7 -7 -7 -6 -6 -6 -6 -6 -5 -5 -------- Run | Yrd Mat Mat Mat Fac Was Fac DSF Fac Ext Cet Arc Hub Fac DSF Hostile Shots Fired 860 | . 15 111 154 . 2 . . . 33 2 1 113 . 429 Missed 224 | . 7 40 39 . . . . . 11 . . 20 . 107 Hits 636 | . 8 71 115 . 2 . . . 22 2 1 93 . 322 Melee 44 | . . 8 . . 2 . . . . . . . . 34 Projectile 592 | . 8 63 115 . . . . . 22 2 1 93 . 288 AOE 11 | . . . . . . . . . . . . . . 11 Critical Strikes 18 | . . 1 4 . 1 . . . 1 1 . 3 . 7 Actively Blocked 4 | . . . . . . . . . . . . . . 4 Part Disruptions 10 | . . . . . . . . . . . . 5 . 5 Damage Taken 11356 | . 105 933 1656 . 91 . . . 199 84 42 2514 . 5732 Core 2105 | . 20 112 238 . . . . . 8 30 . 687 . 1010 Absorbed by Shields 291 | . . . 17 . . . . . 107 23 . 27 . 117 Redirected to Shielding 100 | . . . . . . . . . . . . . . 100 Regen/Repaired (Parts) 174 | . . . . . . . . . 83 . . 91 . . Core Remaining (%) 72 | 100 92 72 56 . . . 100 . . . . 14 . . Volleys Fired 253 | . 34 65 23 4 27 . 1 . 22 11 4 18 . 44 Largest 3 | . 2 2 2 3 3 . 3 . 3 3 3 3 . 3 Hottest 294 | . 40 100 65 70 70 . 144 . 144 144 144 144 . 294 Shots Fired 575 | . 68 127 26 12 76 . 3 . 67 33 12 53 . 98 Gun 336 | . 68 124 10 12 76 . . . . . . 2 . 44 Cannon 238 | . . 2 16 . . . 3 . 67 33 12 51 . 54 Launcher . | . . . . . . . . . . . . . . . Special 1 | . . 1 . . . . . . . . . . . . Kinetic 427 | . 68 126 6 8 51 . 3 . 67 33 12 53 . . Thermal 148 | . . 1 20 4 25 . . . . . . . . 98 Explosive . | . . . . . . . . . . . . . . . Electromagnetic . | . . . . . . . . . . . . . . . Robot Hit Streak 41 | . 6 19 18 26 28 . 1 . 5 3 5 10 . 41 Robot Miss Streak 8 | . 8 5 2 . 2 . 1 . 5 4 5 4 . 2 Penetration Max 3 | . . . . . . . . . 3 1 . 2 . . Secondary Targets 13 | . . 3 . . 1 . . . . . . . . 9 Max Gunslinging Chain 2 | . . 1 . . 1 . . . . . . . . 2 Shots Hit Robots 424 | . 39 88 47 8 69 . 1 . 51 12 6 28 . 75 Core Hits 182 | . 16 38 28 3 9 . 1 . 21 7 2 17 . 40 Critical Kills 27 | . . 1 . . . . . . 12 6 1 7 . . Critical Parts Destroyed 32 | . 2 . . . . . . . 17 3 1 9 . . Critical Strikes 71 | . 2 1 2 . 2 . . . 30 9 3 16 . 6 Burn 8 | . . . . . 2 . . . . . . . . 6 Destroy 61 | . 2 1 . . . . . . 30 9 3 16 . . Sever 2 | . . . 2 . . . . . . . . . . . Melee Attacks 56 | . . 1 36 . . . . . 19 . . . . . Impact . | . . . . . . . . . . . . . . . Slashing 37 | . . 1 36 . . . . . . . . . . . Piercing . | . . . . . . . . . . . . . . . Sneak Attacks 20 | . . . 1 . . . . . 19 . . . . . Combat Hostiles . | . . . . . . . . . . . . . . . Follow-up Attacks . | . . . . . . . . . . . . . . . Damage Inflicted 10050 | . 335 957 2448 139 1282 . 23 . 1145 331 172 920 . 2298 Guns 3734 | . 335 931 156 139 1282 . . . . . . 76 . 815 Cannons 4208 | . . 26 242 . . . 23 . 1145 331 132 826 . 1483 Explosions 1123 | . . . 1123 . . . . . . . . . . . Melee 927 | . . . 927 . . . . . . . . . . . Ramming 58 | . . . . . . . . . . . 40 18 . . Kinetic 4805 | . 335 957 89 63 828 . 23 . 1145 331 132 902 . . Thermal 4260 | . . . 1432 76 454 . . . . . . . . 2298 Explosive . | . . . . . . . . . . . . . . . Electromagnetic . | . . . . . . . . . . . . . . . Impact . | . . . . . . . . . . . . . . . Slashing 927 | . . . 927 . . . . . . . . . . . Piercing . | . . . . . . . . . . . . . . . Highest Corruption 22 | . . . . . . . . . 1 1 1 22 . 16 Average Corruption 2 | . . . . . . . . . 1 1 1 7 . 4 Corruption Purged 1 | . . . . . . . . . . . 1 . . . Corruption Blocked . | . . . . . . . . . . . . . . . Effects 18 | . . . . . . . . . 4 4 1 7 . 2 Message Errors 4 | . . . . . . . . . 1 2 . 1 . . Matter Fused 5 | . . . . . . . . . 1 . 1 2 . 1 Energy Discharges 2 | . . . . . . . . . 1 . . . . 1 Parts Rejected 1 | . . . . . . . . . . . . 1 . . Parts Fused 1 | . . . . . . . . . . . . 1 . . Data Loss (minor) 4 | . . . . . . . . . . 2 . 2 . . Misfires 1 | . . . . . . . . . 1 . . . . . Overload Shots . | . . . . . . . . . . . . . . . Overflow Damage 440 | . . . 347 . . . . . 9 . 16 3 . 65 Projectiles 80 | . . . 3 . . . . . 9 . . 3 . 65 Explosions 316 | . . . 316 . . . . . . . . . . . Melee 44 | . . . 28 . . . . . . . 16 . . . Knockbacks 13 | . . . . . . . . . 5 . 2 6 . . Impact 2 | . . . . . . . . . . . 1 1 . . Kinetic 9 | . . . . . . . . . 5 . 1 3 . . Secondary 2 | . . . . . . . . . . . . 2 . . Self-Inflicted Damage 115 | . . . 86 . . . . . . . 20 9 . . Shots 1 | . . . 1 . . . . . . . . . . . Rammed 5 | . 1 . . . . . . . . . 2 2 . . Targets Rammed 5 | . 1 . . . . . . . . . 2 2 . . Kicked . | . . . . . . . . . . . . . . . Crushed . | . . . . . . . . . . . . . . . Highest Temperature 386 | . . 20 91 37 37 . 24 . 351 240 111 316 . 386 Average Temperature 97 | . . 5 28 19 18 . 16 . 108 112 49 122 . 157 Received Heat Transfer 1703 | . 48 192 669 . . . . . 37 . . 9 . 748 Effects 2 | . . . . . . . . . . . . . . 2 Interference 2 | . . . . . . . . . . . . . . 2 Siege Activations . | . . . . . . . . . . . . . . . Martial Activations . | . . . . . . . . . . . . . . . Shielding Activations . | . . . . . . . . . . . . . . . Robots Disrupted . | . . . . . . . . . . . . . . . Combat Hostiles . | . . . . . . . . . . . . . . . Robots Corrupted 1 | . . . . . . . . . . . 1 . . . Combat Hostiles . | . . . . . . . . . . . . . . . Parts Fried 1 | . . . . . . . . . . . 1 . . . Impact Corruptions 1 | . . . . . . . . . . . 1 . . . Robots Melted . | . . . . . . . . . . . . . . . Combat Hostiles . | . . . . . . . . . . . . . . . Parts Melted 2 | . . . 1 . . . . . . 1 . . . . Heat Transferred 7115 | . . . 1231 148 1036 . . . . . . . . 4700 Parts Sabotaged . | . . . . . . . . . . . . . . . Parts Stolen . | . . . . . . . . . . . . . . . Parts Stripped . | . . . . . . . . . . . . . . . Power Chain Reactions . | . . . . . . . . . . . . . . . Alert | -11 -10 -9 -8 -7 -7 -7 -7 -6 -6 -6 -6 -6 -5 -5 ------- Run | Yrd Mat Mat Mat Fac Was Fac DSF Fac Ext Cet Arc Hub Fac DSF Maximum Alert Level 3 | . . 1 1 . . . 1 1 3 2 1 3 1 1 Low Security (%) 57 | 100 100 30 65 100 100 100 63 82 57 . 12 40 . 79 Level 1 18 | . . 69 34 . . . 36 17 1 . 87 11 100 20 Level 2 19 | . . . . . . . . . 25 100 . 29 . . Level 3 4 | . . . . . . . . . 15 . . 17 . . Level 4 . | . . . . . . . . . . . . . . . Level 5 . | . . . . . . . . . . . . . . . High Security . | . . . . . . . . . . . . . . . Max Security . | . . . . . . . . . . . . . . . Sterilizations 1 | . . . . . . . 1 . . . . . . . Peak Influence 840 | . 50 287 392 170 30 5 394 230 840 619 309 799 268 248 Initial 445 | . . 14 29 170 30 . 3 206 107 445 196 93 268 163 Average 230 | . 12 207 130 129 3 . 215 157 297 540 268 377 249 141 Influence Increases 5235 | . 137 525 719 27 27 5 471 164 1410 392 203 1055 5 95 Destroy 0b10 Robot/C 2280 | . 60 360 400 . . . 180 60 560 160 80 340 . 80 Destroy 0b10 Robot/NC 215 | . 15 15 35 10 . . 15 . 50 10 10 55 . . Destroy Leader 374 | . 32 82 98 2 . . 20 10 56 . . 74 . . Allied During Kill 1575 | . . . . . . . 215 67 599 170 90 434 . . Successful Hack 111 | . . 7 4 . . 5 . 13 77 . . . 5 . Select Force Hacks 30 | . 30 . . . . . . . . . . . . . Disable Machine 375 | . . 30 135 15 . . 15 . 45 30 15 90 . . Destroy Structure 215 | . . 1 32 . 27 . 26 14 23 22 8 62 . . Lose Combat Pursuer 60 | . . 30 15 . . . . . . . . . . 15 Influence Decreases 5235 | . 103 488 414 316 114 . 82 338 833 698 425 776 320 328 Entered New Map 1801 | . . 20 42 206 57 . 2 188 113 352 295 176 280 70 Time Decay 2029 | . 103 278 256 110 57 . . 130 539 326 70 120 40 . Lost Part 518 | . . 40 60 . . . . . . . . 160 . 258 Lost Ally 681 | . . . . . . . 80 20 181 20 60 320 . . Purge Threat 206 | . . 150 56 . . . . . . . . . . . Squads Dispatched 18 | . 3 1 2 . . . 1 1 1 . . 6 1 2 Investigation 4 | . 2 . . . . . . 1 . . . . 1 . Extermination . | . . . . . . . . . . . . . . . Reinforcement 11 | . 1 1 2 . . . 1 . . . . 4 . 2 Assault 1 | . . . . . . . . . 1 . . . . . Garrison 2 | . . . . . . . . . . . . 2 . . Intercept . | . . . . . . . . . . . . . . . Searches Triggered . | . . . . . . . . . . . . . . . Construction Impeded 2 | . . . 1 . . . . . . . . 1 . . Haulers Reinforced . | . . . . . . . . . . . . . . . Active Scanning Responses . | . . . . . . . . . . . . . . . Cargo Convoy Interrupts . | . . . . . . . . . . . . . . . Stealth | -11 -10 -9 -8 -7 -7 -7 -7 -6 -6 -6 -6 -6 -5 -5 --------- Run | Yrd Mat Mat Mat Fac Was Fac DSF Fac Ext Cet Arc Hub Fac DSF Distress Signals 13 | . . 4 1 . . . . . 3 2 . 3 . . Communications Jammed . | . . . . . . . . . . . . . . . Distress Signals . | . . . . . . . . . . . . . . . Times Spotted 204 | . 7 26 26 1 6 . 9 3 20 8 9 23 . 66 Peak Tracking Total 19 | . 3 7 9 1 5 . 4 3 8 4 1 11 . 19 Tactical Retreats 9 | . . 2 1 . . . . . . . . . . 6 Traps | -11 -10 -9 -8 -7 -7 -7 -7 -6 -6 -6 -6 -6 -5 -5 ------- Run | Yrd Mat Mat Mat Fac Was Fac DSF Fac Ext Cet Arc Hub Fac DSF Traps Triggered 11 | . 2 . . 1 . . 2 1 3 . . . . 2 Indirectly . | . . . . . . . . . . . . . . . Trap Hack Attempts . | . . . . . . . . . . . . . . . Triggered . | . . . . . . . . . . . . . . . Disarmed . | . . . . . . . . . . . . . . . Reprogrammed . | . . . . . . . . . . . . . . . Reused . | . . . . . . . . . . . . . . . Traps Extracted . | . . . . . . . . . . . . . . . Installed . | . . . . . . . . . . . . . . . Triggered . | . . . . . . . . . . . . . . . Machines | -11 -10 -9 -8 -7 -7 -7 -7 -6 -6 -6 -6 -6 -5 -5 ---------- Run | Yrd Mat Mat Mat Fac Was Fac DSF Fac Ext Cet Arc Hub Fac DSF Machines Disabled 25 | . . 2 9 1 . . 1 . 3 2 1 6 . . Max in Single Turn 9 | . . 1 9 1 . . . . 1 1 . 1 . . Network Hub 1 | . . . . . . . . . . . . 1 . . Machines Repaired . | . . . . . . . . . . . . . . . Machines Dismantled 6 | . . . . 1 . . . . 2 2 . 1 . . Machines Sabotaged . | . . . . . . . . . . . . . . . Overloaded Fab Kills . | . . . . . . . . . . . . . . . Hacking | -11 -10 -9 -8 -7 -7 -7 -7 -6 -6 -6 -6 -6 -5 -5 --------- Run | Yrd Mat Mat Mat Fac Was Fac DSF Fac Ext Cet Arc Hub Fac DSF Machines Accessed 35 | . 4 2 3 2 . 1 . 4 17 1 . . 1 . Terminals 31 | . 3 2 3 . . 1 . 4 16 1 . . 1 . Fabricators . | . . . . . . . . . . . . . . . Repair Stations 2 | . . . . 1 . . . . 1 . . . . . Recycling Units 2 | . 1 . . 1 . . . . . . . . . . Scanalyzers . | . . . . . . . . . . . . . . . Garrison Access . | . . . . . . . . . . . . . . . Total Hacks 90 | . 8 8 9 6 . 3 . 13 38 2 . . 3 . Successful 33 | . 2 3 2 4 . 1 . 5 15 . . . 1 . Failed 57 | . 6 5 7 2 . 2 . 8 23 2 . . 2 . Catastrophic 13 | . 1 1 . . . . . 2 8 1 . . . . Database Lockouts . | . . . . . . . . . . . . . . . Manual 11 | . 3 3 4 . . . . . . 1 . . . . Terminals 77 | . 7 8 9 . . 3 . 13 32 2 . . 3 . Fabricators . | . . . . . . . . . . . . . . . Repair Stations 8 | . . . . 2 . . . . 6 . . . . . Recycling Units 5 | . 1 . . 4 . . . . . . . . . . Scanalyzers . | . . . . . . . . . . . . . . . Garrison Access . | . . . . . . . . . . . . . . . Terminal Hacks 23 | . 1 3 2 . . 1 . 5 10 . . . 1 . Robot Analysis 1 | . . . . . . . . . 1 . . . . . Prototype ID Bank 2 | . . . . . . . . 1 1 . . . . . Open Door 7 | . . . . . . . . 1 6 . . . . . Open DSF 2 | . . . . . . 1 . . . . . . 1 . Branch Access Points 1 | . . 1 . . . . . . . . . . . . Terminal Index 1 | . . . . . . . . 1 . . . . . . Alert Level 1 | . . 1 . . . . . . . . . . . . Unreport Threat 2 | . . 1 1 . . . . . . . . . . . Locate Traps 4 | . . . 1 . . . . 1 2 . . . . . Hauler Manifests 1 | . 1 . . . . . . . . . . . . . Zone Layout 1 | . . . . . . . . 1 . . . . . . Fabricator Hacks . | . . . . . . . . . . . . . . . Repair Station Hacks 6 | . . . . 1 . . . . 5 . . . . . Scan Component 4 | . . . . 1 . . . . 3 . . . . . Repair 2 | . . . . . . . . . 2 . . . . . Recycling Unit Hacks 3 | . . . . 3 . . . . . . . . . . Report Inventory 1 | . . . . 1 . . . . . . . . . . Retrieve Matter 1 | . . . . 1 . . . . . . . . . . Retrieve Components 1 | . . . . 1 . . . . . . . . . . Scanalyzer . | . . . . . . . . . . . . . . . Garrison Access Hacks . | . . . . . . . . . . . . . . . Unauthorized Hacks 1 | . 1 . . . . . . . . . . . . . Terminals . | . . . . . . . . . . . . . . . Fabricators . | . . . . . . . . . . . . . . . Repair Stations . | . . . . . . . . . . . . . . . Recycling Units 1 | . 1 . . . . . . . . . . . . . Tunnel 1 | . 1 . . . . . . . . . . . . . Scanalyzers . | . . . . . . . . . . . . . . . Garrison Access . | . . . . . . . . . . . . . . . Data Cores Recovered 1 | . . . . . . . . . 1 . . . . . Used 1 | . . . . . . . . . 1 . . . . . Hacking Detections 30 | . 3 2 3 2 . 1 . 3 14 1 . . 1 . Full Trace Events 2 | . . . . . . . . 1 . . . . 1 . Feedback Events . | . . . . . . . . . . . . . . . Feedback Blocked . | . . . . . . . . . . . . . . . Robot Schematics Acquired . | . . . . . . . . . . . . . . . Robots Built . | . . . . . . . . . . . . . . . Authchips . | . . . . . . . . . . . . . . . Time . | . . . . . . . . . . . . . . . Total Robot Build Rating . | . . . . . . . . . . . . . . . Part Schematics Acquired . | . . . . . . . . . . . . . . . Parts Built . | . . . . . . . . . . . . . . . Authchips . | . . . . . . . . . . . . . . . Time . | . . . . . . . . . . . . . . . Total Part Build Rating . | . . . . . . . . . . . . . . . Part Studies Acquired . | . . . . . . . . . . . . . . . Parts Repaired 2 | . . . . . . . . . 2 . . . . . Time 120 | . . . . . . . . . 120 . . . . . Parts Recycled . | . . . . . . . . . . . . . . . Recycled Matter . | . . . . . . . . . . . . . . . Retrieved Matter . | . . . . . . . . . . . . . . . Retrieved Components 3 | . . . . 3 . . . . . . . . . . Parts Scanalyzed . | . . . . . . . . . . . . . . . Part Schematics Acquired . | . . . . . . . . . . . . . . . Parts Damaged . | . . . . . . . . . . . . . . . Bothacking | -11 -10 -9 -8 -7 -7 -7 -7 -6 -6 -6 -6 -6 -5 -5 ------------ Run | Yrd Mat Mat Mat Fac Was Fac DSF Fac Ext Cet Arc Hub Fac DSF Used RIF Installer . | . . . . . . . . . . . . . . . Robots Hacked 1 | . . . . . . . . . 1 . . . . . Non-combat . | . . . . . . . . . . . . . . . Combat 1 | . . . . . . . . . 1 . . . . . Robot Hacks Applied 1 | . . . . . . . . . 1 . . . . . parse_system 1 | . . . . . . . . . 1 . . . . . Relay Couplers Released . | . . . . . . . . . . . . . . . Fabnet Peak Effective % . | . . . . . . . . . . . . . . . Robots Rewired 12 | . . . . . . . . . 12 . . . . . Allies Hacked . | . . . . . . . . . . . . . . . Hacks Repelled . | . . . . . . . . . . . . . . . Allies | -11 -10 -9 -8 -7 -7 -7 -7 -6 -6 -6 -6 -6 -5 -5 -------- Run | Yrd Mat Mat Mat Fac Was Fac DSF Fac Ext Cet Arc Hub Fac DSF Total Allies 49 | . . . . . 19 . . . 25 5 . . . . Largest Group 28 | . . . . . 19 17 17 13 24 28 23 19 . . Highest-Rated Group 1278 | . . . . . 475 447 447 391 829 1278 1130 907 . . Highest-Rated Ally 159 | . . . . . 35 35 35 35 159 152 147 96 . . Initial Warlord ECA Mod 9 | . . . . . . . . 9 9 9 9 9 8 8 Total Orders . | . . . . . . . . . . . . . . . Ally Attacks 564 | . . . . . 95 . 54 28 180 37 28 142 . . Total Damage 13398 | . . . . . 2962 . 1427 799 3494 644 451 3621 . . Kills 71 | . . . . . 7 . 8 3 26 4 4 19 . . Allies Corrupted 8 | . . . . . . . . . . . . 8 . . Allies Melted . | . . . . . . . . . . . . . . . Intel | -11 -10 -9 -8 -7 -7 -7 -7 -6 -6 -6 -6 -6 -5 -5 ------- Run | Yrd Mat Mat Mat Fac Was Fac DSF Fac Ext Cet Arc Hub Fac DSF Active Infowar (turns) 4842 | . . 155 193 235 514 19 222 260 1698 727 147 255 92 325 Optics 4650 | . . . 193 235 514 19 222 260 1698 727 147 255 92 288 Sensors 543 | . . 155 . 120 268 . . . . . . . . . Machine Analysis 113 | . . . . 113 . . . . . . . . . . Jamming 37 | . . . . . . . . . . . . . . 37 Robot Analysis Total 1 | . . . . . . . . . 1 . . . . . Derelict Logs Recovered . | . . . . . . . . . . . . . . . Drone Launches . | . . . . . . . . . . . . . . . Drone Recoveries . | . . . . . . . . . . . . . . . Exploration | -11 -10 -9 -8 -7 -7 -7 -7 -6 -6 -6 -6 -6 -5 -5 ------------- Run | Yrd Mat Mat Mat Fac Was Fac DSF Fac Ext Cet Arc Hub Fac DSF Turns Passed 6337 | 11 431 615 683 235 514 19 222 260 1698 727 147 255 92 428 Spaces Moved 2962 | 5 177 234 338 169 336 15 105 135 810 310 58 106 37 127 Core 24 | . . . . . . . . . . . . . . 24 Treads 584 | 5 177 234 35 . . . 1 . . . . 4 37 91 Legs 12 | . . . . . . . . . . . . . . 12 Wheels 869 | . . . 303 169 336 15 46 . . . . . . . Hover 1473 | . . . . . . . 58 135 810 310 58 102 . . Flight . | . . . . . . . . . . . . . . . Fastest Speed 50 | 160 160 160 100 115 115 130 98 148 98 148 148 98 240 50 Average Speed 142 | 160 160 160 121 115 117 130 116 148 147 148 148 145 240 187 Slowest Speed 410 | 160 160 160 240 115 130 130 250 148 148 148 148 330 240 410 Overloaded Moves . | . . . . . . . . . . . . . . . Propulsion Burnouts . | . . . . . . . . . . . . . . . Robots Hopped . | . . . . . . . . . . . . . . . Potential Cave-ins . | . . . . . . . . . . . . . . . Cave-ins Triggered . | . . . . . . . . . . . . . . . Exploration Rate (%) 45 | 3 41 24 40 6 89 1 91 4 87 93 80 23 2 93 Regions Visited 14 Branch Regions 4 Pre-discovered Areas 1 | . 1 . . . . . . . . . . . . . Known Exits Taken 9 | . . 1 1 . . 1 . 1 1 1 1 1 1 . Unknown Exits Taken 2 | 1 1 . . . . . . . . . . . . . Scrap Searched . | . . . . . . . . . . . . . . . Spaces Dug 1 | . . . 1 . . . . . . . . . . . Terrain Destroyed 90 | . . . 31 . . . . . 19 16 4 19 . 1 Melee 1 | . . . 1 . . . . . . . . . . . Projectile 59 | . . . . . . . . . 19 16 4 19 . 1 AOE 30 | . . . 30 . . . . . . . . . . . Terrain Rammed . | . . . . . . . . . . . . . . . Walls Destroyed . | . . . . . . . . . . . . . . . Machines Disabled . | . . . . . . . . . . . . . . . Actions | -11 -10 -9 -8 -7 -7 -7 -7 -6 -6 -6 -6 -6 -5 -5 --------- Run | Yrd Mat Mat Mat Fac Was Fac DSF Fac Ext Cet Arc Hub Fac DSF Total 4498 | 7 270 367 540 197 415 14 211 195 1227 519 109 157 41 229 Wait 748 | . 45 18 71 . 45 . 66 35 255 164 42 3 . 4 Move 2949 | 4 176 233 337 169 335 14 104 134 809 309 57 105 36 127 Hop . | . . . . . . . . . . . . . . . Pick Up 82 | . 9 11 19 4 . . 11 2 9 4 . 4 . 9 Fast Attach 53 | . 2 3 10 4 4 . 4 . 5 3 2 3 . 13 Attach 43 | . . 6 7 2 1 . . 2 . . . 7 5 13 Detach 3 | . . . . . 1 . . . 1 . . . . 1 Swap 58 | 3 1 12 9 3 1 . 2 . 14 2 . 7 . 4 Drop 96 | . 2 18 28 7 1 . 15 . 9 7 2 5 . 2 Fire 253 | . 34 65 23 4 27 . 1 . 22 11 4 18 . 44 Melee 56 | . . 1 36 . . . . . 19 . . . . . Ram 4 | . . . . . . . . . . . 2 2 . . Kick . | . . . . . . . . . . . . . . . Crush 1 | . 1 . . . . . . . . . . . . . Escape Stasis 68 | . . . . . . . 8 22 26 . . . . 12 Rewire 42 | . . . . . . . . . 42 . . . . . Trap . | . . . . . . . . . . . . . . . Miscellaneous 42 | . . . . 4 . . . . 16 19 . 3 . . Route ------- -11/Scrapyard -10/Materials -9/Materials (discovered 4 exits: *Mat / Min x2 / Sto) -8/Materials -7/Factory -7/Waste -7/Factory -7/DSF -6/Factory -6/Extension (discovered 2 exits: *Fac / *Cet) -6/Cetus (discovered 3 exits: *Fac x2 / *Arc) -6/Archives (discovered 2 exits: *Fac / *Hub) -6/Hub_04(d) -5/Factory -5/DSF (discovered 1 exit: [*Fac]) History --------- Turn | Location | Event 6 | -11/Scrapyard | Discovered new exit (range 3) 12 | -11/Scrapyard | Entered Materials 309 | -10/Materials | Build established: Mutant 322 | -10/Materials | Discovered new exit (range 15) 443 | -10/Materials | Entered another Materials area 443 | -9/Materials | Evolved 2 slots: Propulsion x1, Utility x1 724 | -9/Materials | Lost 3 parts (1p1n1u) 927 | -9/Materials | Build established: Scavenger-Mutant 1039 | -9/Materials | Identified exit to Mines 1039 | -9/Materials | Identified exit to Storage 1040 | -9/Materials | Discovered new exit (range 12) 1056 | -9/Materials | Identified exit to Materials 1058 | -9/Materials | Entered another Materials area 1058 | -8/Materials | Evolved 2 slots: Propulsion x1, Utility x1 1551 | -8/Materials | Lost 7 parts (1p2n3u1w) 1616 | -8/Materials | Destroyed 7 combat bots 1691 | -8/Materials | Discovered new exit (range 11) 1739 | -8/Materials | Identified exit to Factory 1741 | -8/Materials | Entered Factory 1741 | -7/Factory | Evolved 2 slots: Utility x1, Weapon x1 1976 | -7/Factory | Sucked down chute 1976 | -7/Factory | Entered Waste 2021 | -7/Waste | Spotted C-40 Crusher 2048 | -7/Waste | Spotted C-40 Crusher 2129 | -7/Waste | Build established: Skirmisher 2136 | -7/Waste | Spotted C-40 Crusher 2190 | -7/Waste | Destroyed C-40 Crusher 2224 | -7/Waste | Spotted C-40 Crusher 2241 | -7/Waste | Crushed by Compactor (1 part destroyed, 1 dropped) 2244 | -7/Waste | Crushed by Compactor (1 part destroyed, 1 dropped) 2246 | -7/Waste | Spotted C-40 Crusher 2267 | -7/Waste | Spotted C-40 Crusher 2306 | -7/Waste | Discovered new exit (range 20) 2339 | -7/Waste | Warlord forces began an assault 2343 | -7/Waste | Allies destroyed C-40 Crusher 2344 | -7/Waste | Allies destroyed C-40 Crusher 2354 | -7/Waste | Allies destroyed C-40 Crusher 2470 | -7/Waste | Identified exit to Factory 2490 | -7/Waste | Entered Factory 2490 | -7/Factory | Accompanied by 17 allies 2507 | -7/Factory | Identified exit to DSF 2509 | -7/Factory | Entered DSF 2509 | -7/DSF | Accompanied by 17 allies 2553 | -7/DSF | Additional patrols routed to DSF 2583 | -7/DSF | Lost 3 allies 2638 | -7/DSF | Discovered new exit (range 16) 2668 | -7/DSF | Identified exit to Factory 2689 | -7/DSF | Build established: Gunner 2721 | -7/DSF | Sterilization system engaged 2731 | -7/DSF | Entered Factory 2731 | -6/Factory | Accompanied by 13 allies 2731 | -6/Factory | Evolved 2 slots: Power x1, Utility x1 2945 | -6/Factory | Discovered new exit (range 9) 2954 | -6/Factory | Identified exit to Extension 2991 | -6/Factory | Entered Extension 2991 | -6/Extension | Accompanied by 12 allies 3038 | -6/Extension | Build established: Tank 3245 | -6/Extension | Rescued a captive Derelict 3247 | -6/Extension | Rescued a captive Derelict 3354 | -6/Extension | Rescued a captive Derelict 3757 | -6/Extension | Spotted B-75 Beast 3777 | -6/Extension | Allies destroyed B-75 Beast 3777 | -6/Extension | Spotted B-75 Beast 3789 | -6/Extension | Destroyed B-75 Beast 3816 | -6/Extension | Lost 6 allies 3876 | -6/Extension | Rescued a captive Derelict 3879 | -6/Extension | Rescued a captive Derelict 3910 | -6/Extension | Rescued a captive Derelict 3912 | -6/Extension | Rescued a captive Derelict 3946 | -6/Extension | Rescued A7 3992 | -6/Extension | Lost 3 allies 3993 | -6/Extension | Rescued a captive Derelict 3993 | -6/Extension | Rescued a captive Derelict 4029 | -6/Extension | Rescued a captive Derelict 4230 | -6/Extension | Rescued a captive Derelict 4233 | -6/Extension | Rescued a captive Derelict 4305 | -6/Extension | Build established: Commander-Gunner 4391 | -6/Extension | First assault squad dispatched 4411 | -6/Extension | Repaired Imp. Gravmag System 4483 | -6/Extension | Repaired Broken Imp. Gravmag System 4577 | -6/Extension | Discovered new exit (range 10) 4579 | -6/Extension | Discovered new exit (range 6) 4592 | -6/Extension | Identified exit to Cetus 4689 | -6/Extension | Entered Cetus 4689 | -6/Cetus | Accompanied by 23 allies (A7) 4694 | -6/Cetus | Acquired a Cetus Manufacturing Module code from A7 4706 | -6/Cetus | Spotted Cetus Guard 4706 | -6/Cetus | Spotted Cetus Guard 4708 | -6/Cetus | Spotted Cetus Guard 4708 | -6/Cetus | Spotted Cetus Guard 4711 | -6/Cetus | Destroyed Cetus Guard 4711 | -6/Cetus | Destroyed Cetus Guard 4719 | -6/Cetus | Allies destroyed Cetus Guard 4726 | -6/Cetus | Destroyed Cetus Guard 4789 | -6/Cetus | Discovered new exit (range 20) 4816 | -6/Cetus | Identified exit to Factory 4916 | -6/Cetus | Started Cetus Manufacturing Module 4941 | -6/Cetus | Manufactured an Enhanced Grunt 4955 | -6/Cetus | Escorted A7 to Cetus Mainframe 4966 | -6/Cetus | Manufactured an Enhanced Grunt 4991 | -6/Cetus | Manufactured an Enhanced Grunt 5016 | -6/Cetus | Manufactured an Enhanced Grunt 5041 | -6/Cetus | Manufactured an Enhanced Grunt 5050 | -6/Cetus | Discovered new exit (range 19) 5083 | -6/Cetus | Spotted Cetus Guard 5084 | -6/Cetus | Spotted Cetus Guard 5084 | -6/Cetus | Spotted Cetus Guard 5086 | -6/Cetus | Destroyed Cetus Guard 5087 | -6/Cetus | Spotted Cetus Guard 5093 | -6/Cetus | Destroyed Cetus Guard 5096 | -6/Cetus | Allies destroyed Cetus Guard 5099 | -6/Cetus | Destroyed Cetus Guard 5107 | -6/Cetus | Discovered exit to Factory (range 20) 5124 | -6/Cetus | Met Revision 17 5239 | -6/Cetus | Identified exit to Archives 5416 | -6/Cetus | Entered Archives 5416 | -6/Archives | Accompanied by 23 allies (A7) 5421 | -6/Archives | Received a hacking code to weaken MAIN.C 5485 | -6/Archives | Unable to access archive contents 5488 | -6/Archives | Lost 3 allies 5491 | -6/Archives | Discovered exit to Factory (range 16) 5507 | -6/Archives | Discovered new exit (range 14) 5525 | -6/Archives | Identified exit to Hub_04(d) 5563 | -6/Archives | Entered Hub_04(d) 5563 | -6/Hub_04(d) | Accompanied by 19 allies 5586 | -6/Hub_04(d) | Network Hub disabled 5620 | -6/Hub_04(d) | Spotted Lightning 5625 | -6/Hub_04(d) | Spotted Lightning 5634 | -6/Hub_04(d) | Spotted Lightning 5639 | -6/Hub_04(d) | Destroyed Lightning 5642 | -6/Hub_04(d) | Garrison activated, responded to threat 5647 | -6/Hub_04(d) | Allies destroyed Lightning 5661 | -6/Hub_04(d) | Allies destroyed Lightning 5663 | -6/Hub_04(d) | Found Prototype Processor 5663 | -6/Hub_04(d) | Identified Exp. Targeting Computer 5712 | -6/Hub_04(d) | Lost 6 allies 5735 | -6/Hub_04(d) | Spotted Lightning 5754 | -6/Hub_04(d) | Spotted Lightning 5756 | -6/Hub_04(d) | Spotted Lightning 5777 | -6/Hub_04(d) | System corruption reached 10% 5791 | -6/Hub_04(d) | Discovered exit to Factory (range 19) 5797 | -6/Hub_04(d) | Core integrity fell below 50% 5807 | -6/Hub_04(d) | Core integrity fell below 20% 5818 | -6/Hub_04(d) | Entered Factory 5818 | -5/Factory | Evolved 2 slots: Utility x2 5819 | -5/Factory | Lost 13 allies 5842 | -5/Factory | Lost 15 parts (3p7n1u4w) 5910 | -5/Factory | Identified exit to DSF 5910 | -5/Factory | Entered DSF 5920 | -5/DSF | Assembled infested the area 5943 | -5/DSF | Additional patrols routed to DSF 6127 | -5/DSF | Lost 4 parts (1p3w) 6188 | -5/DSF | Destroyed 11 combat bots 6256 | -5/DSF | Destroyed 13 combat bots 6256 | -5/DSF | Lost 14 parts (2p3n4u5w) 6304 | -5/DSF | System corruption reached 10% 6311 | -5/DSF | Core integrity fell below 50% 6331 | -5/DSF | Core integrity fell below 20% 6332 | -5/DSF | Destroyed 9 combat bots 6334 | -5/DSF | Discovered new exit (range 16) 6338 | -5/DSF | Destroyed by as-63197 with Assembled F-torch Last Messages --------------- 06331_ as-23483 destroyed. 06331_ as-87988 destroyed. 06331_ Field strength at 41. 06332_ Field strength at 35. 06333_ Field strength at 8. 06334_ Stasis field depleted. 06334_ as-75013 triggered Stasis Trap. 06334_ A bubble of rippling energy engulfs the area. 06334_ Field strength at 93. 06334_ EXIT=FOUND 06335_ Field strength at 86. 06336_ Field strength at 79. 06336_ as-08338 triggered Stasis Trap. 06336_ A bubble of rippling energy engulfs the area. 06336_ Field strength at 93. 06337_ Field strength at 86. 06337_ Field strength at 72. 06338_ Field strength at 79. Map ----- +----------------------------------------------------+ | | | | | | | | | | | | | | | | | | | ??????????????????????????????????? | | ??????????????????????????????????? | | ??????????????????????????????????? | | ??????????????????????????????????? | | ??????????????????????????????????? | | ???????????????????##?#"??????????? | | ???????#####?????##? ##"####??????? | | ##??##? !!! ??#### """ ??????? | | ]# # !!! = # =% ???????? | | % <= ???????? | | %= a % ???????? | | #]]]### ## ? ==% ???????? | | ?#????## # # #???????? | | ?????? ## ##### #???????? | | ?????? ## ## ???????? | | ??????? # #???????? | | ?????### % ## #" ##% @##??????? | | ?????#!! ## %# % #??????? | | ?????#!! # # &##??????? | | ?????#!! %% # a ##??????? | | ####?## # %# # a #??????? | | #!!!### #!!! ]]]## !!#??????? | | #!!!## *%# !!!#]]]##aa!!#??????? | | !% a a ^ a ==#??????? | | ! % A %%a ==#??????? | | % ==#??????? | | "===## %% # #!!!## #??????? | | #===### % ## #!!!## #??????? | | ##???### %%#### ############??????? | | ?????#!!%%%% #### #???????????????? | | ?????#! !!* ######???????????????? | | ?????#! !! # ##????????????????? | | ?????### #### #????????????????? | | ???### # #????????????????? | | ???# # ##????????????????? | | ###### # ###????????????????? | | [# ## #####??????????????????? | | [# #% %% #????????????????????? | | % % #????????????????????? | | % #????????????????????? | | [# #%% #????????????????????? | +----------------------------------------------------+ Best States ------------- Heat Dissipation 63 Energy Generation 45 Energy Capacity 600 Matter Stores 300 Matter Capacity 300 Sight Range 20 Robot Scan Range 15 Terrain Scan Density 10 Jamming Range 14 Armor Coverage 225 Utility Shielding 66 Evasion (%) 50 Targeting Accuracy 44 Recoil Reduction 4 Item Schematics ----------------- None Robot Schematics ------------------ None Fabricated ------------ Nothing Repaired ---------- Imp. Gravmag System | 50% | -6/Extension Imp. Gravmag System | 50% | -6/Extension | Broken Studied --------- None Alien Tech Used ----------------- None Achievements -------------- Analysis Probe Hot Goods Perfect Aim Challenges ------------ None Game ------ Seed ImpulseLinearLayer Manual? 0 Play Time 01:19:25 Cumulative 301.6 hours Start 2026.07.02 @ 23:08:58 End 2026.07.03 @ 00:26:09 Sessions 1 Manual Loads 0 Difficulty Rogue Special Mode None Game No. 175 Rogue 175 Adventurer 0 Explorer 0 Win Type - Total 16 Types 16/0/0/0/0/0/0/0/0/0 Lore% 75 Gallery% 67 Achievement% 47 Wizard Run 0 Options --------- Layout 1 ASCII 0 Keyboard 0 Movement Numpad Keybinds 0 Fullscreen 1 Font 24/Smallcaps Map View 50x35 Zoom Use 0% Tactical HUD 1 Map Filters NONE Filters NONE Steam 1 RUN: eac03765-beb2-4a85-9162-aaa164c2e086